fUST/lending_fUST_20250227
["ID","MTS","AMOUNT","RATE_DAILY","PERIOD"]
[354646693,1740602528557,-500.0,0.00059176,120]
[354646694,1740602528604,-520.43,0.00059176,120]
[354646695,1740602528652,-488.00703442,0.00059176,120]
[354646696,1740602528703,-510.47,0.00059176,120]
[354646697,1740602528754,-1999.0,0.00059176,120]
[354646698,1740602528804,-500.0,0.0005932,120]
[354646699,1740602528853,-500.0,0.0005932,120]
[354646700,1740602528902,-500.0,0.0005932,120]
[354646701,1740602528953,-500.0,0.0005932,120]
[354646702,1740602529003,-500.0,0.0005932,120]
[354646703,1740602529050,-500.0,0.0005932,120]
[354646704,1740602529097,-500.0,0.0005932,120]
[354646705,1740602529145,-1833.62,0.0005932,7]
[354646706,1740602529193,-500.0,0.0005932,120]
[354646707,1740602529239,-500.0,0.0005932,120]
[354646708,1740602529290,-239.43303868,0.00059321,30]
[354646709,1740602529338,-500.0,0.00059321,120]
[354646710,1740602529388,-500.0,0.00059321,120]
[354646711,1740602529443,-500.0,0.00059321,120]
[354646712,1740602529496,-500.0,0.00059321,120]
[354646713,1740602529549,-500.0,0.00059321,120]
[354646714,1740602529601,-229.43107481,0.00059321,120]
[354646715,1740602529647,-500.0,0.00059321,120]
[354646716,1740602529695,-557.5803526,0.00059356,60]
[354646717,1740602529745,-798.8609307,0.00059356,60]
[354646718,1740602529795,-153.0,0.00059356,60]
[354646719,1740602529846,-153.0,0.00059356,60]
[354646720,1740602529895,-153.0,0.00059356,60]
[354646721,1740602529942,-153.0,0.00059356,60]
[354646722,1740602529989,-153.0,0.00059356,60]
[354646723,1740602530039,-153.0,0.00059356,60]
[354646724,1740602530086,-153.0,0.00059356,60]
[354646725,1740602530133,-153.0,0.00059356,60]
[354646726,1740602530181,-153.0,0.00059356,60]
[354646727,1740602530228,-153.0,0.00059356,60]
[354646728,1740602530276,-153.0,0.00059356,60]
[354646729,1740602530322,-153.0,0.00059356,60]
[354646730,1740602530369,-153.0,0.00059356,60]
[354646731,1740602530420,-153.0,0.00059356,60]
[354646732,1740602530469,-153.0,0.00059356,60]
[354646733,1740602530517,-153.0,0.00059356,60]
[354646734,1740602530563,-153.0,0.00059356,60]
[354646735,1740602530607,-153.0,0.00059356,60]
[354646736,1740602530654,-153.0,0.00059356,60]
[354646737,1740602530811,-153.0,0.00059356,60]
[354646738,1740602530865,-153.0,0.00059356,60]
[354646739,1740602530913,-153.0,0.00059356,60]
[354646740,1740602530963,-367.7368047,0.00059356,60]
[354646741,1740602531006,-431.8507174,0.00059356,60]
[354646742,1740602531051,-557.5803526,0.00059356,60]
[354646743,1740602531094,-549.27,0.0005945,120]
[354646744,1740602531136,-547.23015222,0.0005945,120]
[354646745,1740602531181,-500.0,0.0005945,120]
[354646746,1740602531224,-520.43,0.0005945,120]
[354646747,1740602531266,-510.47,0.0005945,120]
[354646748,1740602531311,-500.0,0.00059594,120]
[354646749,1740602531357,-500.0,0.00059594,120]
[354646750,1740602531400,-500.0,0.00059594,120]
[354646751,1740602531441,-500.0,0.00059594,120]
[354646752,1740602531489,-1833.62,0.00059594,7]
[354646753,1740602531535,-500.0,0.00059594,120]
[354646754,1740602531581,-113.58497881,0.00059595,120]
[354646755,1740602531626,-500.0,0.00059595,120]
[354646756,1740602531671,-500.0,0.00059595,120]
[354646757,1740602531714,-500.0,0.00059595,120]
[354646758,1740602531754,-500.0,0.00059595,120]
[354646759,1740602531797,-500.0,0.00059595,120]
[354646760,1740602531839,-153.0,0.00059703,60]
[354646761,1740602531883,-557.5803526,0.00059703,60]
[354646762,1740602531927,-549.27,0.00059724,120]
[354646763,1740602531968,-567.04673746,0.00059724,120]
[354646764,1740602532008,-520.43,0.00059724,120]
[354646765,1740602532050,-510.47,0.00059724,120]
[354646766,1740602532093,-500.0,0.00059868,120]
[354646767,1740602532136,-500.0,0.00059868,120]
[354646768,1740602532183,-500.0,0.00059868,120]
[354646769,1740602532227,-1833.62,0.00059868,7]
[354646770,1740602532272,-500.0,0.00059868,120]
[354646771,1740602532318,-500.0,0.00059869,120]
[354646772,1740602532364,-500.0,0.00059869,120]
[354646773,1740602532410,-500.0,0.00059869,120]
[354646774,1740602532460,-500.0,0.00059869,120]
[354646775,1740602532508,-500.0,0.00059869,120]
[354646776,1740602532552,-500.0,0.00059869,120]
[354646777,1740602532597,-193.863,0.00059916,120]
[354646778,1740602532642,-549.32950828,0.00059998,120]
[354646779,1740602532685,-520.64547686,0.00059998,120]
[354646780,1740602532727,-510.69179364,0.00059998,120]
[354646781,1740602532868,500.0,0.00052054,120]
[354646782,1740602532929,500.0,0.00052054,120]
[354646783,1740602532980,500.0,0.00052328,120]
[354646784,1740602533030,500.0,0.00052602,120]
[354646785,1740602533078,500.0,0.00052876,120]
[354646786,1740602533215,500.0,0.0005315,120]
[354646787,1740602533277,500.0,0.00053424,120]
[354646788,1740602533334,500.0,0.00053698,120]
[354646789,1740602533394,500.0,0.00053972,120]
[354646790,1740602533448,500.0,0.00052054,120]
[354646791,1740602533506,500.0,0.00054246,120]
[354646792,1740602533568,500.0,0.0005452,120]
[354646793,1740602533622,500.0,0.00054794,120]
[354646794,1740602533680,500.0,0.00053697,120]
[354646795,1740602533730,500.0,0.00055068,120]
[354646796,1740602533789,500.0,0.00053971,120]
[354646797,1740602533840,505.49906312,0.00055342,120]
[354646798,1740602533894,347.85743595,0.00054245,120]
[354646799,1740602534026,500.0,0.00053697,120]
[354646800,1740602534082,526.07781321,0.00053971,120]
[354646801,1740602534144,500.0,0.00052054,120]
[354646802,1740602534237,500.0,0.00052054,120]
[354646803,1740602534302,500.0,0.00052328,120]
[354646804,1740602534366,500.0,0.00052602,120]
[354646805,1740602534425,500.0,0.00052876,120]
[354646806,1740602534482,500.0,0.0005315,120]
[354646807,1740602534541,500.0,0.00053424,120]
[354646808,1740602534600,500.0,0.00053698,120]
[354646809,1740602534655,359.23152041,0.00053972,120]
[354646810,1740602534718,500.0,0.00052054,120]
[354646811,1740602534778,500.0,0.00052328,120]
[354646812,1740602534829,500.0,0.00052054,120]
[354646813,1740602534881,500.0,0.00052328,120]
[354646814,1740602534928,500.0,0.00052602,120]
[354646815,1740602534975,500.0,0.00052876,120]
[354646816,1740602535022,500.0,0.00052602,120]
[354646817,1740602535067,500.0,0.0005315,120]
[354646818,1740602535113,500.0,0.00052876,120]
[354646819,1740602535159,500.0,0.00053424,120]
[354646820,1740602535213,500.0,0.0005315,120]
[354646821,1740602535274,413.83974751,0.00052054,120]
[354646822,1740602535328,500.0,0.00053698,120]
[354646823,1740602535381,500.0,0.00053424,120]
[354646824,1740602535435,500.0,0.00053972,120]
[354646825,1740602535563,520.62914685,0.00053698,120]
[354646826,1740602535623,500.0,0.00054246,120]
[354646827,1740602535692,500.0,0.0005452,120]
[354646828,1740602535753,500.0,0.00054794,120]
[354646829,1740602535813,252.76,0.00053697,120]
[354646830,1740602535871,500.0,0.00055068,120]
[354646831,1740602535932,500.0,0.00055342,120]
[354646832,1740602535984,500.0,0.00054794,120]
[354646833,1740602536033,500.0,0.00055616,120]
[354646834,1740602536086,500.0,0.00054794,120]
[354646835,1740602536133,500.0,0.0005589,120]
[354646836,1740602536188,500.0,0.00056164,120]
[354646837,1740602536245,500.0,0.00054794,120]
[354646838,1740602536306,500.0,0.00056438,120]
[354646839,1740602536365,500.0,0.00054794,120]
[354646840,1740602536453,500.0,0.00056712,120]
[354646841,1740602536573,500.0,0.00054794,120]
[354646842,1740602536628,265.37752155,0.00056986,120]
[354646843,1740602536684,500.0,0.00054794,120]
[354646844,1740602536741,500.0,0.00054794,120]
[354646845,1740602536803,500.0,0.00054794,120]
[354646846,1740602536884,500.0,0.00053697,120]
[354646847,1740602536936,500.0,0.00054794,120]
[354646848,1740602536997,500.0,0.00053971,120]
[354646849,1740602537048,504.65490974,0.00054794,120]
[354646850,1740602537103,500.0,0.00054245,120]
[354646851,1740602537188,217.91203669,0.00052054,120]
[354646852,1740602537264,500.0,0.00052373,10]
[354646853,1740602537382,559.37376129,0.00053697,120]
[354646854,1740602537464,500.0,0.00052054,120]
[354646855,1740602537521,500.0,0.00052328,120]
[354646856,1740602537577,519.82,0.00052602,120]
[354646857,1740602537715,500.0,0.00052054,120]
[354646858,1740602537771,500.0,0.00052328,120]
[354646859,1740602537903,500.0,0.00052602,120]
[354646860,1740602537967,500.0,0.00052876,120]
[354646861,1740602538021,500.0,0.00052054,120]
[354646862,1740602538078,617.15233253,0.00052328,120]
[354646863,1740602538189,500.0,0.00052054,120]
[354646864,1740602538248,500.0,0.00052328,120]
[354646865,1740602538313,500.0,0.00052602,120]
[354646866,1740602538365,500.0,0.00053697,120]
[354646867,1740602538416,500.0,0.00053971,120]
[354646868,1740602538486,500.0,0.00054245,120]
[354646869,1740602538543,500.0,0.00054519,120]
[354646870,1740602538612,500.0,0.00054793,120]
[354646871,1740602538668,500.0,0.00055067,120]
[354646872,1740602538731,500.0,0.00053697,120]
[354646873,1740602538793,151.5,0.00055341,120]
[354646874,1740602538849,500.0,0.00053971,120]
[354646875,1740602538918,500.0,0.00054245,120]
[354646876,1740602538976,500.0,0.00052054,120]
[354646877,1740602539042,411.70157176,0.00052328,120]
[354646878,1740602539120,500.0,0.00053697,120]
[354646879,1740602539180,500.0,0.00052054,120]
[354646880,1740602539237,500.0,0.00053971,120]
[354646881,1740602539297,500.0,0.00052328,120]
[354646882,1740602539356,500.0,0.00054245,120]
[354646883,1740602539416,500.0,0.00052602,120]
[354646884,1740602539509,274.23776578,0.00052054,120]
[354646885,1740602539648,500.0,0.00052054,120]
[354646886,1740602539713,500.0,0.00052328,120]
[354646887,1740602539771,346.35672643,0.00052602,120]
[354646888,1740602539856,500.0,0.00052054,120]
[354646889,1740602539915,500.0,0.00052328,120]
[354646890,1740602539983,500.0,0.00052602,120]
[354646891,1740602540035,500.0,0.00052054,120]
[354646892,1740602540182,500.0,0.00052876,120]
[354646893,1740602540247,500.0,0.00052328,120]
[354646894,1740602540299,500.0,0.0005315,120]
[354646895,1740602540361,500.0,0.00052602,120]
[354646896,1740602540424,500.0,0.00053424,120]
[354646897,1740602540485,500.0,0.00052876,120]
[354646898,1740602540557,500.0,0.00053698,120]
[354646899,1740602540630,500.0,0.00053972,120]
[354646900,1740602540718,500.0,0.00054246,120]
[354646901,1740602540789,500.0,0.0005452,120]
[354646902,1740602540857,500.0,0.00054794,120]
[354646903,1740602540922,500.0,0.00055068,120]
[354646904,1740602540991,500.0,0.00055342,120]
[354646905,1740602541063,500.0,0.00055616,120]
[354646906,1740602541132,354.6232142,0.0005589,120]
[354646907,1740602541203,500.0,0.00052054,120]
[354646908,1740602541257,500.0,0.00052328,120]
[354646909,1740602541314,512.28135351,0.00052054,120]
[354646910,1740602541366,500.0,0.00052602,120]
[354646911,1740602541415,500.0,0.00052054,120]
[354646912,1740602541467,500.0,0.00053697,120]
[354646913,1740602541520,268.83,0.0006,60]
[354646914,1740602541575,268.83,0.0006,60]
[354646915,1740602541626,500.0,0.00052328,120]
[354646916,1740602541681,268.83,0.0006,60]
[354646917,1740602541733,268.83,0.0006,60]
[354646918,1740602541778,500.0,0.00053971,120]
[354646919,1740602541829,268.83,0.0006,60]
[354646920,1740602541877,500.0,0.00052876,120]
[354646921,1740602541932,268.83,0.0006,60]
[354646922,1740602541991,268.83,0.0006,60]
[354646923,1740602542047,268.83,0.0006,60]
[354646924,1740602542095,500.0,0.00054245,120]
[354646925,1740602542150,268.83,0.0006,60]
[354646926,1740602542201,268.83,0.0006,60]
[354646927,1740602542249,500.0,0.0005315,120]
[354646928,1740602542304,268.83,0.0006,60]
[354646929,1740602542363,268.83,0.0006,60]
[354646930,1740602542506,500.0,0.00053424,120]
[354646931,1740602542601,500.0,0.00053698,120]
[354646932,1740602542668,500.0,0.00053972,120]
[354646933,1740602542737,441.70924259,0.00054246,120]
[354646934,1740602542850,500.0,0.00052054,120]
[354646935,1740602542946,500.0,0.00052328,120]
[354646936,1740602542995,500.0,0.00052602,120]
[354646937,1740602543043,500.0,0.00052876,120]
[354646938,1740602543092,220.68152387,0.00053697,120]
[354646939,1740602543140,448.24868411,0.0005315,120]
[354646940,1740602543271,500.0,0.00053697,120]
[354646941,1740602543332,500.0,0.00053971,120]
[354646942,1740602543400,500.0,0.00054245,120]
[354646943,1740602543450,500.0,0.00054519,120]
[354646944,1740602543504,233.04,0.00054793,120]
[354646945,1740602543574,534.61,0.00052054,120]
[354646946,1740602543623,500.0,0.00052054,120]
[354646947,1740602543671,501.09199312,0.00052328,120]
[354646948,1740602543722,500.0,0.00053697,120]
[354646949,1740602543770,534.61,0.00052328,120]
[354646950,1740602543826,504.6875701,0.00053971,120]
[354646951,1740602543876,534.61,0.00052602,120]
[354646952,1740602543923,534.61,0.00052876,120]
[354646953,1740602543972,534.61,0.0005315,120]
[354646954,1740602544019,534.61,0.00053424,120]
[354646955,1740602544066,500.0,0.00053697,15]
[354646956,1740602544114,534.61,0.00053698,120]
[354646957,1740602544167,500.0,0.00053971,15]
[354646958,1740602544217,534.61,0.00053972,120]
[354646959,1740602544268,500.0,0.00054245,15]
[354646960,1740602544320,534.61,0.00054246,120]
[354646961,1740602544375,534.61,0.0005452,120]
[354646962,1740602544429,534.61,0.00054794,120]
[354646963,1740602544565,534.61,0.00055068,120]
[354646964,1740602544624,534.61,0.00055342,120]
[354646965,1740602544678,534.61,0.00055616,120]
[354646966,1740602544734,534.61,0.0005589,120]
[354646967,1740602544785,534.61,0.00056164,120]
[354646968,1740602544837,534.61,0.00056438,120]
[354646969,1740602544887,534.61,0.00056712,120]
[354646970,1740602544940,534.61,0.00056986,120]
[354646971,1740602545006,534.61,0.0005726,120]
[354646972,1740602545066,534.61,0.00057534,120]
[354646973,1740602545126,534.61,0.00057808,120]
[354646974,1740602545178,151.31,0.000573,30]
[354646975,1740602545236,534.61,0.00058082,120]
[354646976,1740602545297,534.75762362,0.00058356,120]
[354646977,1740602545365,500.0,0.00053673,10]
[354646978,1740602545416,1000.0,0.00059152,15]
[354646979,1740602545484,500.0,0.00052054,120]
[354646980,1740602545555,500.0,0.00052328,120]
[354646981,1740602545608,630.08,0.00052602,120]
[354646982,1740602546042,500.0,0.00053697,120]
[354646983,1740602546108,505.32411389,0.00053971,120]
[354646984,1740602546292,500.0,0.00052054,120]
[354646985,1740602546421,248.47,0.00052054,120]
[354646986,1740602546746,596.99543523,0.00053697,120]
[354646987,1740602548415,1604.42,0.00052326,7]
[354646988,1740602548560,500.0,0.00052054,120]
[354646989,1740602548707,1604.42,0.000526,7]
[354646990,1740602548818,500.0,0.00052328,120]
[354646991,1740602548962,1604.42,0.00052874,7]
[354646992,1740602549116,500.0,0.00052602,120]
[354646993,1740602549205,1604.42,0.00053148,7]
[354646994,1740602549377,500.0,0.00052876,120]
[354646995,1740602549483,1604.42,0.00053422,7]
[354646996,1740602549620,500.0,0.0005315,120]
[354646997,1740602549770,1604.42,0.00053696,7]
[354646998,1740602549960,153.85242043,0.00053424,120]
[354646999,1740602550011,1604.42,0.0005397,7]
[354647000,1740602550063,500.0,0.00052054,120]
[354647001,1740602550109,500.0,0.00052054,120]
[354647002,1740602550265,1604.42,0.00054244,7]
[354647003,1740602550355,500.0,0.00052328,120]
[354647004,1740602550408,500.0,0.00052328,120]
[354647005,1740602550508,1604.42,0.00054518,7]
[354647006,1740602550617,500.0,0.00052602,120]
[354647007,1740602550670,500.0,0.00052602,120]
[354647008,1740602550755,1604.42,0.00054792,7]
[354647009,1740602550867,500.0,0.00052876,120]
[354647010,1740602550917,500.0,0.00052876,120]
[354647011,1740602551158,500.0,0.0005315,120]
[354647012,1740602551467,500.0,0.00053424,120]
[354647013,1740602551736,500.0,0.00053698,120]
[354647014,1740602552009,500.0,0.00053972,120]
[354647015,1740602552256,500.0,0.00054246,120]
[354647016,1740602552506,500.0,0.0005452,120]
[354647017,1740602552797,500.0,0.00054794,120]
[354647018,1740602552869,1604.42,0.00055066,7]
[354647019,1740602553035,500.0,0.00055068,120]
[354647020,1740602553146,1604.42,0.0005534,7]
[354647021,1740602553344,500.0,0.00055342,120]
[354647022,1740602553530,1604.42,0.00055614,7]
[354647023,1740602553585,500.0,0.00055616,120]
[354647024,1740602553795,1604.42,0.00055888,7]
[354647025,1740602553867,500.0,0.0005589,120]
[354647026,1740602554053,1604.42,0.00056162,7]
[354647027,1740602554117,500.0,0.00056164,120]
[354647028,1740602554310,1604.42,0.00056436,7]
[354647029,1740602554401,500.0,0.00056438,120]
[354647030,1740602554551,1604.42,0.0005671,7]
[354647031,1740602554671,372.29077679,0.00056712,120]
[354647032,1740602554811,1604.42,0.00056984,7]
[354647033,1740602555044,716.99,0.00052601,120]
[354647034,1740602555097,1604.42,0.00057258,7]
[354647035,1740602555350,1604.42,0.00057532,7]
[354647036,1740602555630,1604.42,0.00057806,7]
[354647037,1740602555875,1604.42,0.0005808,7]
[354647038,1740602556123,1604.42,0.00058354,7]
[354647039,1740602556630,1604.4884,0.00058628,7]
[354647040,1740602556906,500.0,0.00052054,120]
[354647041,1740602557232,500.0,0.00052054,120]
[354647042,1740602557335,500.0,0.00052328,120]
[354647043,1740602557500,500.0,0.00052328,120]
[354647044,1740602557742,500.0,0.00052602,120]
[354647045,1740602557811,500.0,0.00053697,120]
[354647046,1740602557985,500.0,0.00052876,120]
[354647047,1740602558240,500.0,0.0005315,120]
[354647048,1740602558519,222.56033813,0.00053424,120]
[354647049,1740602564496,500.0,0.00052054,120]
[354647050,1740602564883,500.0,0.00052326,120]
[354647051,1740602565213,500.0,0.000526,120]
[354647052,1740602565470,500.0,0.00052874,120]
[354647053,1740602566469,500.0,0.00052054,120]
[354647054,1740602566720,500.0,0.00052328,120]
[354647055,1740602567339,152.72388183,0.00054794,120]
[354647056,1740602568795,229.54,0.00052054,120]
[354647057,1740602574398,500.0,0.00053697,120]
[354647058,1740602574639,500.0,0.00053971,120]
[354647059,1740602574891,500.0,0.00054245,120]
[354647060,1740602575158,500.0,0.00054519,120]
[354647061,1740602575412,500.0,0.00054793,120]
[354647062,1740602575665,500.0,0.00055067,120]
[354647063,1740602575925,500.0,0.00055341,120]
[354647064,1740602576169,500.0,0.00055615,120]
[354647065,1740602576451,500.0,0.00055889,120]
[354647066,1740602576720,500.0,0.00056163,120]
[354647067,1740602576982,516.04404404,0.00056437,120]
[354647068,1740602578957,500.0,0.00053697,120]
[354647069,1740602579614,500.0,0.00053971,120]
[354647070,1740602579863,500.0,0.00054245,120]
[354647071,1740602580129,500.0,0.00054519,120]
[354647072,1740602580387,500.0,0.00054793,120]
[354647073,1740602580502,500.0,0.00052054,120]
[354647074,1740602580729,500.0,0.00055067,120]
[354647075,1740602580833,525.21812275,0.00052328,120]
[354647076,1740602580891,500.0,0.00055341,120]
[354647077,1740602581156,500.0,0.00055615,120]
[354647078,1740602581409,500.0,0.00055889,120]
[354647079,1740602581672,500.0,0.00056163,120]
[354647080,1740602581952,500.0,0.00056437,120]
[354647081,1740602583522,500.0,0.00052054,120]
[354647082,1740602583832,504.46757716,0.00052328,120]
[354647083,1740602586957,500.0,0.00052054,120]
[354647084,1740602587219,500.0,0.00052328,120]
[354647085,1740602587567,500.0,0.00052602,120]
[354647086,1740602593057,500.0,0.00052054,120]
[354647087,1740602593344,500.0,0.00052328,120]
[354647088,1740602593595,500.0,0.00052602,120]
[354647089,1740602593878,500.0,0.00052876,120]
[354647090,1740602594100,500.0,0.0005315,120]
[354647091,1740602594536,500.0,0.00053424,120]
[354647092,1740602594799,500.0,0.00053698,120]
[354647095,1740602599946,500.0,0.00053697,120]
[354647096,1740602600230,517.39797696,0.00053971,120]
[354647097,1740602600773,500.0,0.00052054,120]
[354647098,1740602600941,500.0,0.00052054,120]
[354647099,1740602601190,500.0,0.00052328,120]
[354647100,1740602601472,500.0,0.00052602,120]
[354647101,1740602601716,500.0,0.00052876,120]
[354647102,1740602601987,500.0,0.0005315,120]
[354647103,1740602602254,500.0,0.00053424,120]
[354647104,1740602602500,500.0,0.00053698,120]
[354647105,1740602602751,500.0,0.00053972,120]
[354647106,1740602603018,500.0,0.00054246,120]
[354647107,1740602603629,500.0,0.0005452,120]
[354647108,1740602603936,500.0,0.00054794,120]
[354647109,1740602604147,500.0,0.00055068,120]
[354647110,1740602604405,500.0,0.00055342,120]
[354647111,1740602604682,518.60147848,0.00055616,120]
[354647112,1740602605321,500.0,0.00053697,120]
[354647113,1740602605594,481.51440151,0.00053971,120]
[354647114,1740602609721,500.0,0.00052054,120]
[354647115,1740602609971,500.0,0.00052328,120]
[354647116,1740602610242,500.0,0.00052602,120]
[354647117,1740602610486,500.0,0.00052876,120]
[354647118,1740602610764,500.0,0.0005315,120]
[354647119,1740602611022,500.0,0.00053424,120]
[354647120,1740602611269,500.0,0.00053698,120]
[354647121,1740602611535,500.0,0.00053972,120]
[354647122,1740602611815,500.0,0.00054246,120]
[354647123,1740602612113,500.0,0.0005452,120]
[354647124,1740602612367,500.0,0.00054794,120]
[354647125,1740602612632,500.0,0.00055068,120]
[354647126,1740602612880,500.0,0.00055342,120]
[354647127,1740602613147,500.0,0.00055616,120]
[354647128,1740602613390,500.0,0.0005589,120]
[354647129,1740602613631,500.0,0.00056164,120]
[354647130,1740602613686,600.05988178,0.00053697,120]
[354647131,1740602613876,500.0,0.00056438,120]
[354647132,1740602614135,500.0,0.00056712,120]
[354647133,1740602614401,500.0,0.00056986,120]
[354647134,1740602614693,500.0,0.0005726,120]
[354647135,1740602614952,313.74439141,0.00057534,120]
[354647136,1740602616126,500.0,0.00052054,120]
[354647137,1740602616367,500.0,0.00052328,120]
[354647138,1740602616702,500.0,0.00052602,120]
[354647139,1740602616947,500.0,0.00052876,120]
[354647140,1740602617314,500.0,0.0005315,120]
[354647141,1740602617592,500.0,0.00053424,120]
[354647142,1740602619957,500.0,0.00052054,120]
[354647143,1740602620209,500.0,0.00052328,120]
[354647144,1740602620480,500.0,0.00052602,120]
[354647145,1740602620737,500.0,0.00052876,120]
[354647146,1740602621068,500.0,0.0005315,120]
[354647147,1740602621685,500.0,0.00053424,120]
[354647148,1740602621950,500.0,0.00053698,120]
[354647149,1740602622198,500.0,0.00053972,120]
[354647150,1740602622510,500.0,0.00054246,120]
[354647151,1740602622699,500.0,0.0005452,120]
[354647152,1740602622996,500.0,0.00054794,120]
[354647153,1740602623254,500.0,0.00055068,120]
[354647154,1740602623576,500.0,0.00055342,120]
[354647155,1740602623822,500.0,0.00055616,120]
[354647156,1740602624063,500.0,0.0005589,120]
[354647157,1740602624469,500.0,0.00056164,120]
[354647158,1740602624671,500.0,0.00056438,120]
[354647159,1740602625027,500.0,0.00056712,120]
[354647160,1740602625268,560.38589663,0.00056986,120]
[354647161,1740602634442,500.0,0.00053697,120]
[354647162,1740602634796,500.0,0.00053971,120]
[354647163,1740602634956,500.0,0.00054245,120]
[354647164,1740602635194,500.0,0.00054519,120]
[354647165,1740602635441,500.0,0.00054793,120]
[354647166,1740602635974,500.0,0.00055067,120]
[354647167,1740602636329,410.24167117,0.00055341,120]
[354647168,1740602638961,500.0,0.00052054,120]
[354647169,1740602639210,500.0,0.00052328,120]
[354647170,1740602639451,500.0,0.00052602,120]
[354647171,1740602639733,594.83,0.00052876,120]
[354647172,1740602641800,300.0,0.00053697,120]
[354647173,1740602641864,300.0,0.00053971,120]
[354647174,1740602642110,300.0,0.00054245,120]
[354647175,1740602650310,300.0,0.00054519,120]
[354647176,1740602650575,300.0,0.00054793,120]
[354647177,1740602650855,300.0,0.00055067,120]
[354647178,1740602651265,300.0,0.00055341,120]
[354647179,1740602651527,300.0,0.00055615,120]
[354647180,1740602655132,500.0,0.00053697,120]
[354647181,1740602655408,500.0,0.00053971,120]
[354647182,1740602655678,500.0,0.00054245,120]
[354647183,1740602655923,500.0,0.00054519,120]
[354647184,1740602656175,500.0,0.00054793,120]
[354647185,1740602656410,500.0,0.00055067,120]
[354647186,1740602659165,432.03,0.00052054,120]
[354647187,1740602664393,500.0,0.00052054,120]
[354647188,1740602664658,500.0,0.00052328,120]
[354647189,1740602664900,500.0,0.00052602,120]
[354647190,1740602665151,500.0,0.00052876,120]
[354647191,1740602665407,500.0,0.0005315,120]
[354647192,1740602665692,500.0,0.00053424,120]
[354647193,1740602666805,500.0,0.00053698,120]
[354647194,1740602666909,594.06045621,0.00052054,120]